[Event "44th Chess Olympiad Open 2022"]
[Site "Chennai"]
[Date "2022.07.31"]
[Round "3.26"]
[White "Vera Siguenas, Deivy"]
[Black "Mwadzura, Roy"]
[Result "1/2-1/2"]
[WhiteElo "2503"]
[BlackElo "2093"]
[Annotator "RC"]
[PlyCount "83"]
[EventDate "2022.??.??"]
[TimeControl "60"]

1. d4 {[%emt 0:01:29]} Nf6 {[%emt 0:01:12]} 2. c4 {[%emt 0:00:05]} e6 {[%emt 0:
00:00]} 3. Nc3 {[%emt 0:00:07]} d5 {[%emt 0:00:13]} 4. cxd5 {[%emt 0:00:04]}
exd5 {[%emt 0:00:05]} 5. Bg5 {[%emt 0:00:04]} c6 {[%emt 0:00:50]} 6. e3 {
[%emt 0:00:06]} h6 {[%emt 0:01:50]} 7. Bh4 {[%emt 0:00:12]} Be7 {[%emt 0:02:44]
} 8. Bd3 {[%emt 0:00:08]} Be6 {[%emt 0:00:20]} 9. Nf3 {[%emt 0:04:11]} Nbd7 {
[%emt 0:02:39]} 10. Qc2 {[%emt 0:04:33]} Rc8 {[%emt 0:04:54]} 11. O-O {[%emt 0:
00:00]} O-O {[%emt 0:00:45]} 12. Rad1 {[%emt 0:13:24]} Re8 {[%emt 0:01:28]} 13.
h3 {[%emt 0:02:41]} Qc7 {[%emt 0:08:14]} 14. Bg3 {[%emt 0:02:23]} Bd6 {[%emt 0:
00:00]} 15. Bxd6 {[%emt 0:00:13]} Qxd6 {[%emt 0:00:09]} 16. a3 {[%emt 0:04:31]}
c5 {[%emt 0:09:10]} 17. dxc5 {[%emt 0:07:56]} Nxc5 {[%emt 0:00:45]} 18. Nd4 {
[%emt 0:21:54]} Qb6 {[%emt 0:12:30]} 19. Bb5 {[%emt 0:10:52]} Red8 {[%emt 0:00:
00]} 20. Qe2 {[%emt 0:01:43]} a6 {[%emt 0:02:27]} 21. Na4 {[%emt 0:00:36]} Nxa4
{[%emt 0:00:30]} 22. Bxa4 {[%emt 0:00:03]} Rc4 {[%emt 0:01:37]} 23. Bc2 {
[%emt 0:00:42]} Rdc8 {[%emt 0:01:54]} 24. Bd3 {[%emt 0:03:31]} R4c7 {[%emt 0:
00:00]} 25. f3 {[%emt 0:00:15]} Re8 {[%emt 0:04:00]} 26. Qf2 {[%emt 0:02:13]}
Rce7 {[%emt 0:01:18]} 27. Rfe1 {[%emt 0:00:59]} Bd7 {[%emt 0:01:25]} 28. Rc1 {
[%emt 0:00:26]} Re5 {[%emt 0:01:43]} 29. b4 {[%emt 0:02:42]} Qd6 {[%emt 0:00:
00]} 30. Rc3 {[%emt 0:03:02]} Kh8 {[%emt 0:02:19]} 31. Bf1 {[%emt 0:02:28]}
R5e7 {[%emt 0:04:25]} 32. Rec1 {[%emt 0:01:27]} Re5 {[%emt 0:01:31]} 33. Rd1 {
[%emt 0:03:05]} Qb6 {[%emt 0:00:46]} 34. Qd2 {[%emt 0:01:39]} Rg5 {[%emt 0:00:
00]} 35. g4 {[%emt 0:00:54]} Rge5 {[%emt 0:00:12]} 36. Re1 {[%emt 0:00:57]} Qd6
{[%emt 0:00:22]} 37. Qh2 {[%emt 0:00:41]} Qb6 {[%emt 0:00:51]} 38. Qf2 {
[%emt 0:01:01]} Kg8 {[%emt 0:00:55]} 39. Rc5 {[%emt 0:00:57]} h5 {[%emt 0:00:
00]} 40. Bg2 {[%emt 0:00:56]} hxg4 {[%emt 0:01:24]} 41. hxg4 {[%emt 0:30:20]}
Bxg4 {[%emt 0:33:14]} 42. fxg4 {[%emt 0:04:17]} 1/2-1/2

[Event "44th Chess Olympiad Open 2022"]
[Site "Chennai"]
[Date "2022.07.31"]
[Round "3.26"]
[White "Makoto, Rodwell"]
[Black "Cordova, Emilio"]
[Result "1/2-1/2"]
[WhiteElo "2346"]
[BlackElo "2549"]
[Annotator "ChessBase"]
[PlyCount "62"]
[EventDate "2022.??.??"]
[TimeControl "60"]

1. Nf3 {[%emt 0:03:58]} d5 {[%emt 0:00:57]} 2. g3 {[%emt 0:00:43]} Nf6 {
[%emt 0:01:27]} 3. Bg2 {[%emt 0:00:24]} e6 {[%emt 0:01:43]} 4. d4 {[%emt 0:00:
00]} c5 {[%emt 0:00:38]} 5. O-O {[%emt 0:08:12]} cxd4 {[%emt 0:01:48]} 6. Nxd4
{[%emt 0:00:00]} e5 {[%emt 0:00:12]} 7. Nb3 {[%emt 0:00:00]} Be6 {[%emt 0:00:
00]} 8. c4 {[%emt 0:00:53]} Nc6 {[%emt 0:00:00]} 9. cxd5 {[%emt 0:00:25]} Nxd5
{[%emt 0:00:05]} 10. Nc3 {[%emt 0:01:24]} Nxc3 {[%emt 0:00:33]} 11. bxc3 {
[%emt 0:08:33]} Qc7 {[%emt 0:07:32]} 12. Be3 {[%emt 0:00:00]} Rd8 {[%emt 0:00:
00]} 13. Qb1 {[%emt 0:02:58]} Bc4 {[%emt 0:05:44]} 14. Re1 {[%emt 0:02:12]} Be7
{[%emt 0:03:41]} 15. Qe4 {[%emt 0:10:51]} Bd5 {[%emt 0:12:00]} 16. Qg4 {
[%emt 0:03:11]} g6 {[%emt 0:14:26]} 17. Red1 {[%emt 0:14:41]} Bxg2 {[%emt 0:00:
00]} 18. Kxg2 {[%emt 0:00:31]} O-O {[%emt 0:00:00]} 19. Bh6 {[%emt 0:02:26]}
Rxd1 {[%emt 0:00:00]} 20. Rxd1 {[%emt 0:00:05]} Rd8 {[%emt 0:02:21]} 21. e4 {
[%emt 0:02:25]} Bf8 {[%emt 0:00:00]} 22. Bg5 {[%emt 0:02:38]} Rxd1 {[%emt 0:00:
00]} 23. Qxd1 {[%emt 0:06:14]} b6 {[%emt 0:04:07]} 24. Qd5 {[%emt 0:00:00]} h6
{[%emt 0:00:00]} 25. Be3 {[%emt 0:00:44]} Ne7 {[%emt 0:01:05]} 26. Qa8 {
[%emt 0:04:39]} Nc8 {[%emt 0:04:15]} 27. Qd5 {[%emt 0:16:08]} Ne7 {[%emt 0:00:
00]} 28. Qa8 {[%emt 0:00:00]} Qc6 {[%emt 0:06:43]} 29. Qxc6 {[%emt 0:00:00]}
Nxc6 {[%emt 0:00:00]} 30. a4 {[%emt 0:00:00]} f5 {[%emt 0:00:00]} 31. f3 {
[%emt 0:02:00]} Kf7 {[%emt 0:02:03]} 1/2-1/2

[Event "44th Chess Olympiad Open 2022"]
[Site "Chennai"]
[Date "2022.07.31"]
[Round "3.26"]
[White "Mushore, Emarald Takudzwa"]
[Black "Terry, Renato"]
[Result "0-1"]
[WhiteElo "2153"]
[BlackElo "2502"]
[Annotator "RC"]
[PlyCount "90"]
[EventDate "2022.??.??"]
[TimeControl "60"]

1. e4 {[%emt 0:00:05]} g6 {[%emt 0:01:51]} 2. d4 {[%emt 0:00:14]} Bg7 {[%emt 0:
00:00]} 3. Nc3 {[%emt 0:00:09]} c6 {[%emt 0:00:03]} 4. Nf3 {[%emt 0:00:27]} d5
{[%emt 0:00:20]} 5. e5 {[%emt 0:01:12]} Nh6 {[%emt 0:00:17]} 6. h3 {[%emt 0:00:
00]} f6 {[%emt 0:00:04]} 7. exf6 {[%emt 0:01:13]} exf6 {[%emt 0:00:03]} 8. Be2
{[%emt 0:00:18]} O-O {[%emt 0:00:05]} 9. O-O {[%emt 0:00:24]} Nd7 {[%emt 0:00:
00]} 10. Re1 {[%emt 0:05:59]} Re8 {[%emt 0:00:31]} 11. Bf4 {[%emt 0:01:21]} Nf8
{[%emt 0:00:05]} 12. Qd2 {[%emt 0:00:38]} Nf7 {[%emt 0:00:07]} 13. Bf1 {
[%emt 0:02:27]} Ne6 {[%emt 0:00:04]} 14. Bg3 {[%emt 0:03:33]} Bh6 {[%emt 0:00:
00]} 15. Qd1 {[%emt 0:02:28]} Bd7 {[%emt 0:20:44]} 16. Rb1 {[%emt 0:08:33]} b5
{[%emt 0:24:50]} 17. b3 {[%emt 0:16:05]} Bf8 {[%emt 0:01:22]} 18. Re3 {[%emt 0:
00:00]} Nd6 {[%emt 0:07:56]} 19. Bd3 {[%emt 0:04:04]} Qa5 {[%emt 0:01:46]} 20.
Qe1 {[%emt 0:29:48]} Nf7 {[%emt 0:01:33]} 21. Ne2 {[%emt 0:01:42]} Qxe1+ {
[%emt 0:00:30]} 22. Nxe1 {[%emt 0:00:02]} Bh6 {[%emt 0:00:29]} 23. f4 {[%emt 0:
00:00]} Nd6 {[%emt 0:00:22]} 24. c3 {[%emt 0:00:52]} Ng7 {[%emt 0:03:50]} 25.
Rxe8+ {[%emt 0:02:23]} Rxe8 {[%emt 0:00:01]} 26. Nc2 {[%emt 0:02:24]} Bf5 {
[%emt 0:00:15]} 27. Nc1 {[%emt 0:01:36]} Nh5 {[%emt 0:00:23]} 28. Bf2 {[%emt 0:
00:00]} Nxf4 {[%emt 0:00:29]} 29. Bxf5 {[%emt 0:00:19]} Nxf5 {[%emt 0:00:01]}
30. Kf1 {[%emt 0:02:35]} Nd6 {[%emt 0:00:01]} 31. Nb4 {[%emt 0:00:57]} Ne4 {
[%emt 0:00:01]} 32. Be1 {[%emt 0:03:32]} Re6 {[%emt 0:02:23]} 33. Na6 {[%emt 0:
00:00]} Bf8 {[%emt 0:02:37]} 34. b4 {[%emt 0:00:24]} g5 {[%emt 0:01:41]} 35.
Ra1 {[%emt 0:00:24]} f5 {[%emt 0:00:49]} 36. a4 {[%emt 0:00:17]} bxa4 {[%emt 0:
00:00]} 37. Rxa4 {[%emt 0:00:05]} g4 {[%emt 0:00:05]} 38. Ra2 {[%emt 0:02:14]}
Rh6 {[%emt 0:01:01]} 39. Ne2 {[%emt 0:00:31]} gxh3 {[%emt 0:00:18]} 40. gxh3 {
[%emt 0:00:09]} Nxe2 {[%emt 0:02:26]} 41. Kxe2 {[%emt 0:30:19]} Rxh3 {[%emt 0:
00:00]} 42. Ra3 {[%emt 0:00:06]} f4 {[%emt 0:00:13]} 43. Nc5 {[%emt 0:01:27]}
f3+ {[%emt 0:00:07]} 44. Kd1 {[%emt 0:00:18]} Bxc5 {[%emt 0:00:02]} 45. bxc5 {
[%emt 0:00:19]} Rh1 {[%emt 0:00:31]} 0-1

[Event "44th Chess Olympiad Open 2022"]
[Site "Chennai"]
[Date "2022.07.31"]
[Round "3.27"]
[White "Jumabayev, Rinat"]
[Black "Kaloust, Giorgio"]
[Result "1-0"]
[WhiteElo "2617"]
[BlackElo "1942"]
[Annotator "RC"]
[PlyCount "131"]
[EventDate "2022.??.??"]
[TimeControl "60"]

1. Nf3 {[%emt 0:00:12]} Nf6 {[%emt 0:00:43]} 2. g3 {[%emt 0:02:04]} b6 {
[%emt 0:00:07]} 3. Bg2 {[%emt 0:00:23]} Bb7 {[%emt 0:00:05]} 4. O-O {[%emt 0:
00:00]} e6 {[%emt 0:00:33]} 5. c4 {[%emt 0:01:17]} Be7 {[%emt 0:00:20]} 6. Re1
{[%emt 0:00:17]} O-O {[%emt 0:04:49]} 7. Nc3 {[%emt 0:00:31]} d5 {[%emt 0:00:
00]} 8. d4 {[%emt 0:04:10]} c5 {[%emt 0:00:19]} 9. dxc5 {[%emt 0:03:11]} Bxc5 {
[%emt 0:02:03]} 10. cxd5 {[%emt 0:03:42]} Nxd5 {[%emt 0:08:42]} 11. Ng5 {
[%emt 0:08:03]} h6 {[%emt 0:05:23]} 12. Nh3 {[%emt 0:00:00]} Na6 {[%emt 0:00:
00]} 13. Nxd5 {[%emt 0:00:00]} Bxd5 {[%emt 0:03:28]} 14. Bxd5 {[%emt 0:02:38]}
Qxd5 {[%emt 0:06:13]} 15. Qxd5 {[%emt 0:00:24]} exd5 {[%emt 0:00:27]} 16. Nf4 {
[%emt 0:00:00]} Rfd8 17. Rd1 {[%emt 0:07:56]} Nc7 {[%emt 0:04:20]} 18. h4 {
[%emt 0:05:56]} Rd7 {[%emt 0:00:41]} 19. Kf1 {[%emt 0:08:13]} Rad8 {[%emt 0:00:
00]} 20. Bd2 {[%emt 0:05:32]} Ne6 {[%emt 0:25:18]} 21. Nd3 {[%emt 0:00:00]} Bd6
{[%emt 0:00:50]} 22. Rac1 {[%emt 0:10:33]} Nc5 {[%emt 0:02:28]} 23. Nb4 {
[%emt 0:00:47]} Ne4 {[%emt 0:00:22]} 24. Nc6 {[%emt 0:01:07]} Re8 {[%emt 0:00:
00]} 25. Be1 {[%emt 0:04:53]} Be5 {[%emt 0:04:13]} 26. b4 {[%emt 0:05:21]} Re6
{[%emt 0:05:48]} 27. Nxe5 {[%emt 0:00:00]} Rxe5 {[%emt 0:00:08]} 28. f3 {
[%emt 0:00:43]} Nf6 {[%emt 0:01:12]} 29. Bc3 {[%emt 0:00:33]} Re6 {[%emt 0:00:
00]} 30. g4 {[%emt 0:00:00]} Ne8 {[%emt 0:08:47]} 31. Be1 {[%emt 0:00:00]} Nc7
{[%emt 0:00:38]} 32. Bg3 {[%emt 0:00:00]} Ree7 {[%emt 0:00:17]} 33. Bxc7 {
[%emt 0:00:00]} Rxc7 {[%emt 0:00:02]} 34. Rxc7 {[%emt 0:00:00]} Rxc7 {[%emt 0:
00:00]} 35. Rxd5 {[%emt 0:00:00]} Rc2 {[%emt 0:01:13]} 36. Rd8+ {[%emt 0:00:00]
} Kh7 {[%emt 0:00:08]} 37. a3 {[%emt 0:00:00]} Ra2 {[%emt 0:00:42]} 38. Rd7 {
[%emt 0:00:00]} Rxa3 {[%emt 0:00:25]} 39. Rxf7 {[%emt 0:00:00]} Kg6 {[%emt 0:
00:00]} 40. Rf5 {[%emt 0:00:00]} Ra4 {[%emt 0:00:35]} 41. h5+ {[%emt 0:17:29]}
Kh7 {[%emt 0:30:05]} 42. b5 {[%emt 0:00:37]} Rb4 {[%emt 0:00:00]} 43. Kf2 {
[%emt 0:00:00]} Rb3 {[%emt 0:00:00]} 44. e4 {[%emt 0:00:00]} Kg8 {[%emt 0:00:
00]} 45. Kg3 {[%emt 0:00:00]} Kh7 {[%emt 0:00:00]} 46. Kf4 {[%emt 0:00:00]} Kg8
{[%emt 0:00:00]} 47. g5 {[%emt 0:00:00]} hxg5+ {[%emt 0:00:00]} 48. Kxg5 {
[%emt 0:00:00]} Rb1 {[%emt 0:00:00]} 49. Rd5 {[%emt 0:00:00]} Rb3 {[%emt 0:00:
00]} 50. f4 {[%emt 0:00:00]} Rg3+ {[%emt 0:00:00]} 51. Kf5 {[%emt 0:00:00]} Rh3
{[%emt 0:00:00]} 52. Kg4 {[%emt 0:00:00]} Rh1 {[%emt 0:00:00]} 53. e5 {[%emt 0:
00:00]} Kf8 {[%emt 0:00:00]} 54. Rd7 {[%emt 0:03:40]} Rb1 {[%emt 0:00:00]} 55.
Rxa7 {[%emt 0:00:00]} Rxb5 {[%emt 0:00:00]} 56. Kf5 {[%emt 0:00:00]} Rc5 {
[%emt 0:02:57]} 57. h6 {[%emt 0:00:00]} gxh6 {[%emt 0:02:11]} 58. Kf6 {[%emt 0:
00:00]} Rc8 {[%emt 0:01:26]} 59. e6 {[%emt 0:00:00]} h5 {[%emt 0:02:02]} 60. f5
{[%emt 0:00:00]} h4 {[%emt 0:00:57]} 61. Rh7 {[%emt 0:00:00]} Kg8 {[%emt 0:00:
00]} 62. Rxh4 {[%emt 0:00:00]} Rc6 {[%emt 0:00:54]} 63. Rg4+ {[%emt 0:00:00]}
Kf8 {[%emt 0:00:22]} 64. Rd4 {[%emt 0:00:00]} Rc8 {[%emt 0:00:27]} 65. Rh4 {
[%emt 0:00:00]} Kg8 {[%emt 0:00:28]} 66. Rg4+ {[%emt 0:00:00]} 1-0

[Event "44th Chess Olympiad Open 2022"]
[Site "Chennai"]
[Date "2022.07.31"]
[Round "3.27"]
[White "Urazayev, Arystanbek"]
[Black "Kassis, Antoine"]
[Result "1-0"]
[WhiteElo "2430"]
[BlackElo "2202"]
[Annotator "RC"]
[PlyCount "125"]
[EventDate "2022.??.??"]
[TimeControl "60"]

1. e4 {[%emt 0:00:10]} c5 {[%emt 0:00:06]} 2. Nf3 {[%emt 0:00:11]} g6 {[%emt 0:
00:00]} 3. c3 {[%emt 0:00:38]} Bg7 {[%emt 0:00:45]} 4. d4 {[%emt 0:00:07]} cxd4
{[%emt 0:00:16]} 5. cxd4 {[%emt 0:00:07]} d5 {[%emt 0:00:13]} 6. e5 {[%emt 0:
00:00]} Nc6 {[%emt 0:00:35]} 7. h3 {[%emt 0:03:25]} f6 {[%emt 0:04:34]} 8. Bb5
{[%emt 0:08:41]} Nh6 {[%emt 0:21:12]} 9. O-O {[%emt 0:02:01]} O-O {[%emt 0:00:
00]} 10. exf6 {[%emt 0:02:10]} exf6 {[%emt 0:00:18]} 11. Re1 {[%emt 0:01:36]}
Qd6 {[%emt 0:03:06]} 12. b3 {[%emt 0:06:32]} Rd8 {[%emt 0:07:42]} 13. Ba3 {
[%emt 0:02:06]} Qc7 {[%emt 0:00:56]} 14. Nc3 {[%emt 0:01:53]} Qa5 {[%emt 0:00:
00]} 15. Bb2 {[%emt 0:10:56]} a6 {[%emt 0:08:02]} 16. Bxc6 {[%emt 0:03:38]}
bxc6 {[%emt 0:01:57]} 17. Na4 {[%emt 0:00:04]} Bd7 {[%emt 0:11:04]} 18. Nc5 {
[%emt 0:03:18]} Qc7 {[%emt 0:04:42]} 19. Rc1 {[%emt 0:01:56]} Re8 {[%emt 0:00:
00]} 20. Rxe8+ {[%emt 0:10:35]} Bxe8 {[%emt 0:03:53]} 21. Qe2 {[%emt 0:04:21]}
a5 {[%emt 0:04:13]} 22. Re1 {[%emt 0:00:52]} Bf7 {[%emt 0:01:06]} 23. Bc1 {
[%emt 0:06:36]} Nf5 {[%emt 0:02:53]} 24. g4 {[%emt 0:00:52]} Re8 {[%emt 0:00:
00]} 25. Qf1 {[%emt 0:00:10]} Nd6 {[%emt 0:00:26]} 26. Bf4 {[%emt 0:00:46]} Qd8
{[%emt 0:00:10]} 27. Qa6 {[%emt 0:08:02]} Rxe1+ {[%emt 0:00:21]} 28. Nxe1 {
[%emt 0:00:02]} Qe8 {[%emt 0:01:35]} 29. Bxd6 {[%emt 0:03:54]} Qxe1+ {[%emt 0:
00:00]} 30. Kg2 {[%emt 0:00:04]} f5 {[%emt 0:01:44]} 31. Qc8+ {[%emt 0:10:18]}
Qe8 {[%emt 0:00:05]} 32. Qxe8+ {[%emt 0:00:05]} Bxe8 {[%emt 0:00:04]} 33. Be5 {
[%emt 0:00:04]} fxg4 {[%emt 0:00:43]} 34. hxg4 {[%emt 0:00:32]} Bf8 {[%emt 0:
00:00]} 35. Nb7 {[%emt 0:01:56]} Bb4 {[%emt 0:00:59]} 36. Bc7 {[%emt 0:01:14]}
a4 {[%emt 0:00:07]} 37. bxa4 {[%emt 0:01:02]} Bd7 {[%emt 0:00:04]} 38. Kf3 {
[%emt 0:06:07]} Bc8 {[%emt 0:00:11]} 39. Nd8 {[%emt 0:00:14]} c5 {[%emt 0:00:
00]} 40. Bd6 {[%emt 0:00:13]} Bd7 {[%emt 0:01:00]} 41. Bxc5 {[%emt 0:31:10]}
Bc3 {[%emt 0:05:04]} 42. Bb6 {[%emt 0:00:00]} Bxa4 {[%emt 0:00:14]} 43. Ne6 {
[%emt 0:00:00]} Bd2 {[%emt 0:14:10]} 44. Ke2 {[%emt 0:00:00]} Bb4 {[%emt 0:00:
00]} 45. Nf4 {[%emt 0:00:00]} Bc6 {[%emt 0:00:39]} 46. Bc7 {[%emt 0:00:00]} Ba3
{[%emt 0:06:16]} 47. Kf3 {[%emt 0:00:00]} Kf7 {[%emt 0:01:15]} 48. Bb6 {
[%emt 0:00:00]} Bd6 {[%emt 0:02:05]} 49. Nd3 {[%emt 0:00:00]} Bb5 {[%emt 0:00:
00]} 50. Ke3 {[%emt 0:00:00]} h5 {[%emt 0:00:20]} 51. gxh5 {[%emt 0:00:00]}
gxh5 {[%emt 0:00:05]} 52. Bd8 {[%emt 0:00:00]} Ke6 {[%emt 0:00:30]} 53. Nf4+ {
[%emt 0:00:00]} Bxf4+ {[%emt 0:00:04]} 54. Kxf4 {[%emt 0:00:00]} Ba4 {[%emt 0:
00:00]} 55. Kg5 {[%emt 0:00:00]} Bd1 {[%emt 0:01:07]} 56. f4 {[%emt 0:01:36]}
Kd7 {[%emt 0:01:24]} 57. Ba5 {[%emt 0:00:31]} Ke6 {[%emt 0:00:05]} 58. f5+ {
[%emt 0:01:50]} Kf7 {[%emt 0:00:05]} 59. Be1 {[%emt 0:00:05]} Kg7 {[%emt 0:00:
00]} 60. Bh4 {[%emt 0:00:09]} Kf7 {[%emt 0:00:05]} 61. Kf4 {[%emt 0:00:03]} Bc2
{[%emt 0:00:40]} 62. Ke5 {[%emt 0:00:10]} Kg7 {[%emt 0:02:22]} 63. f6+ {
[%emt 0:00:37]} 1-0

[Event "44th Chess Olympiad Open 2022"]
[Site "Chennai"]
[Date "2022.07.31"]
[Round "3.27"]
[White "El Jawich, Amro"]
[Black "Suleymenov, Alisher"]
[Result "0-1"]
[WhiteElo "2314"]
[BlackElo "2467"]
[Annotator "RC"]
[PlyCount "62"]
[EventDate "2022.??.??"]
[TimeControl "60"]

1. e4 {[%emt 0:02:12]} c5 {[%emt 0:00:05]} 2. Nf3 {[%emt 0:00:20]} e6 {[%emt 0:
00:00]} 3. b3 {[%emt 0:00:06]} b6 {[%emt 0:00:05]} 4. d4 {[%emt 0:01:19]} cxd4
{[%emt 0:01:39]} 5. Nxd4 {[%emt 0:00:10]} Bb7 {[%emt 0:02:09]} 6. Bd3 {[%emt 0:
00:00]} d6 {[%emt 0:11:42]} 7. Bb2 {[%emt 0:01:19]} Nf6 {[%emt 0:00:12]} 8. Nd2
{[%emt 0:05:31]} a6 {[%emt 0:00:56]} 9. Qe2 {[%emt 0:02:59]} Nbd7 {[%emt 0:00:
00]} 10. f4 {[%emt 0:04:52]} e5 {[%emt 0:08:06]} 11. N4f3 {[%emt 0:07:45]} exf4
{[%emt 0:04:02]} 12. O-O-O {[%emt 0:03:30]} Ng4 {[%emt 0:13:56]} 13. g3 {
[%emt 0:09:47]} fxg3 {[%emt 0:07:05]} 14. e5 {[%emt 0:12:36]} Ngxe5 {[%emt 0:
00:00]} 15. Rhe1 {[%emt 0:05:01]} Qe7 {[%emt 0:19:10]} 16. Nxe5 {[%emt 0:09:51]
} dxe5 {[%emt 0:08:53]} 17. Nc4 {[%emt 0:04:23]} Qg5+ {[%emt 0:01:38]} 18. Kb1
{[%emt 0:00:30]} O-O-O {[%emt 0:04:36]} 19. Be4 {[%emt 0:10:13]} Bc5 {[%emt 0:
00:00]} 20. b4 {[%emt 0:00:50]} Bxb4 {[%emt 0:02:56]} 21. Rxd7 {[%emt 0:00:39]}
Rxd7 {[%emt 0:00:50]} 22. Nxb6+ {[%emt 0:00:08]} Kd8 {[%emt 0:00:23]} 23. Bc1 {
[%emt 0:04:57]} Qe7 {[%emt 0:00:42]} 24. Rf1 {[%emt 0:02:46]} Bc3 {[%emt 0:00:
00]} 25. a3 {[%emt 0:00:01]} Rd6 {[%emt 0:00:59]} 26. Nc4 {[%emt 0:00:24]} Rd4
{[%emt 0:00:22]} 27. Bd3 {[%emt 0:01:18]} g2 {[%emt 0:00:12]} 28. Rg1 {[%emt 0:
00:00]} e4 {[%emt 0:00:22]} 29. Qh5 {[%emt 0:00:50]} exd3 {[%emt 0:00:19]} 30.
cxd3 {[%emt 0:00:29]} Rxc4 {[%emt 0:00:17]} 31. dxc4 {[%emt 0:00:11]} Qe4+ {
[%emt 0:00:04]} 0-1

[Event "44th Chess Olympiad Open 2022"]
[Site "Chennai"]
[Date "2022.07.31"]
[Round "3.27"]
[White "Khoder, Akram"]
[Black "Nogerbek, Kazybek"]
[Result "0-1"]
[WhiteElo "2038"]
[BlackElo "2437"]
[Annotator "RC"]
[PlyCount "88"]
[EventDate "2022.??.??"]
[TimeControl "60"]

1. d4 {[%emt 0:00:04]} Nf6 {[%emt 0:00:27]} 2. c4 {[%emt 0:00:07]} e6 {[%emt 0:
00:00]} 3. g3 {[%emt 0:00:04]} d5 {[%emt 0:00:19]} 4. Bg2 {[%emt 0:00:11]} Bb4+
{[%emt 0:00:44]} 5. Nd2 {[%emt 0:00:10]} O-O {[%emt 0:00:16]} 6. Ngf3 {[%emt 0:
00:00]} b6 {[%emt 0:00:56]} 7. O-O {[%emt 0:00:44]} Bb7 {[%emt 0:00:10]} 8.
cxd5 {[%emt 0:00:15]} exd5 {[%emt 0:00:21]} 9. a3 {[%emt 0:00:09]} Bd6 {
[%emt 0:00:09]} 10. b4 {[%emt 0:00:07]} Nbd7 {[%emt 0:01:46]} 11. Qb3 {[%emt 0:
00:00]} Qe7 {[%emt 0:08:04]} 12. Bb2 {[%emt 0:00:58]} Ne4 {[%emt 0:04:06]} 13.
e3 {[%emt 0:05:07]} b5 {[%emt 0:07:04]} 14. Qc2 {[%emt 0:32:07]} a5 {[%emt 0:
00:00]} 15. Nb3 {[%emt 0:02:39]} axb4 {[%emt 0:04:37]} 16. axb4 {[%emt 0:01:12]
} Rxa1 {[%emt 0:04:45]} 17. Rxa1 {[%emt 0:00:16]} Ndf6 {[%emt 0:00:39]} 18. Nc5
{[%emt 0:02:59]} Bc8 {[%emt 0:06:21]} 19. Ra7 {[%emt 0:03:41]} Bxc5 {[%emt 0:
00:00]} 20. dxc5 {[%emt 0:01:19]} Ng4 {[%emt 0:00:49]} 21. Bd4 {[%emt 0:12:52]}
Ngxf2 {[%emt 0:05:16]} 22. Nd2 {[%emt 0:02:04]} Nh3+ {[%emt 0:06:44]} 23. Kf1 {
[%emt 0:04:41]} Bf5 {[%emt 0:01:59]} 24. Nxe4 {[%emt 0:04:39]} Bxe4 {[%emt 0:
00:00]} 25. Bxe4 {[%emt 0:00:47]} dxe4 {[%emt 0:00:09]} 26. Qe2 {[%emt 0:01:32]
} Ng5 {[%emt 0:04:02]} 27. Qxb5 {[%emt 0:01:53]} Qe6 {[%emt 0:00:24]} 28. Qe2 {
[%emt 0:00:35]} c6 {[%emt 0:00:56]} 29. Ra6 {[%emt 0:05:04]} Nf3 {[%emt 0:00:
00]} 30. Kg2 {[%emt 0:02:49]} Qd7 {[%emt 0:01:30]} 31. Qb2 {[%emt 0:03:30]}
Ne1+ {[%emt 0:01:12]} 32. Kf1 {[%emt 0:00:10]} Nd3 {[%emt 0:00:08]} 33. Qd2 {
[%emt 0:00:20]} h5 {[%emt 0:00:42]} 34. b5 {[%emt 0:03:37]} cxb5 {[%emt 0:00:
00]} 35. Qe2 {[%emt 0:00:11]} Qf5+ {[%emt 0:00:34]} 36. Kg2 {[%emt 0:00:43]}
Nxc5 {[%emt 0:02:38]} 37. Rb6 {[%emt 0:00:08]} Nd3 {[%emt 0:00:14]} 38. Qf1 {
[%emt 0:00:09]} Qxf1+ {[%emt 0:01:38]} 39. Kxf1 {[%emt 0:00:11]} b4 {[%emt 0:
00:00]} 40. Ke2 {[%emt 0:00:32]} Ra8 {[%emt 0:00:14]} 41. h3 {[%emt 0:30:26]}
Ra2+ {[%emt 0:30:24]} 42. Kd1 {[%emt 0:00:06]} Rg2 {[%emt 0:00:08]} 43. Rb5 {
[%emt 0:00:19]} Rxg3 {[%emt 0:00:40]} 44. Rxh5 {[%emt 0:00:26]} b3 {[%emt 0:00:
00]} 0-1